bitfinex/quotes_BTCUSD_20250727
["timestamp","ask_amount","ask_price","bid_price","bid_amount"]
[1753642102051,0.59531112,119180.0,119170.0,0.41785013]
[1753642102302,0.59531112,119180.0,119170.0,0.42624101]
[1753642103088,0.60370136,119180.0,119170.0,0.42612101]
[1753642103301,0.60370129,119180.0,119170.0,0.42612101]
[1753642103509,0.59531112,119180.0,119170.0,0.42612101]
[1753642104209,0.6120916,119180.0,119170.0,0.29620101]
[1753642104426,0.6120916,119180.0,119170.0,0.41773013]
[1753642104657,0.60370129,119180.0,119170.0,0.41773013]
[1753642104882,0.58692102,119180.0,119170.0,0.54612101]
[1753642105111,0.57853099,119180.0,119170.0,0.54612101]
[1753642105883,0.57853099,119180.0,119170.0,0.42612101]
[1753642106113,0.26395142,119180.0,119170.0,0.42612101]
[1753642106341,0.58692109,119180.0,119170.0,0.54612101]
[1753642106568,0.58692109,119180.0,119170.0,0.42612101]
[1753642106826,0.59531126,119180.0,119170.0,0.42612101]
[1753642107463,0.60370157,119180.0,119170.0,0.41773013]
[1753642107682,0.6037015,119180.0,119170.0,0.42600101]
[1753642107888,0.59531126,119180.0,119170.0,0.42600101]
[1753642108144,0.59531133,119180.0,119170.0,0.42600101]
[1753642108777,0.58692109,119180.0,119170.0,0.42600101]
[1753642108995,0.58692109,119180.0,119170.0,0.42596101]
[1753642109869,0.59531126,119180.0,119170.0,0.42596101]
[1753642110520,0.60370157,119180.0,119170.0,0.41757013]
[1753642111197,0.58692109,119180.0,119170.0,0.42596101]
[1753642111435,0.59531133,119180.0,119170.0,0.42596101]
[1753642112350,0.59531133,119180.0,119170.0,0.41757013]
[1753642112563,0.59531133,119180.0,119170.0,0.42596101]
[1753642112777,0.59531133,119180.0,119170.0,0.41757013]
[1753642112991,0.63555505,119180.0,119170.0,0.42596101]
[1753642113445,0.81175917,119180.0,119170.0,0.26263672]
[1753642113656,0.64394578,119180.0,119170.0,0.40066795]
[1753642113866,0.82014976,119180.0,119170.0,0.40066809]
[1753642114089,0.44854613,119180.0,119170.0,0.40066809]
[1753642114302,0.81175952,119180.0,119170.0,0.40066809]
[1753642114952,0.81175952,119180.0,119170.0,0.40905939]
[1753642115752,0.81175952,119180.0,119170.0,0.41745062]
[1753642116172,0.81175952,119180.0,119170.0,0.40066809]
[1753642116824,0.44854613,119180.0,119170.0,0.40066809]
[1753642117035,0.77143667,119180.0,119170.0,0.40066809]
[1753642117250,0.77143667,119180.0,119170.0,0.40905939]
[1753642117474,0.77143667,119180.0,119170.0,0.40066809]
[1753642117698,0.76304636,119180.0,119170.0,0.12956]
[1753642118628,0.76304636,119180.0,119170.0,0.29738747]
[1753642118850,0.76204636,119180.0,119170.0,0.29738747]
[1753642119085,0.58584217,119180.0,119170.0,0.32256074]
[1753642119297,0.59623227,119180.0,119170.0,0.32256081]
[1753642119689,0.60462272,119180.0,119170.0,0.33315722]
[1753642119945,0.60462265,119180.0,119170.0,0.34154817]
[1753642120131,0.60462265,119180.0,119170.0,0.34993905]
[1753642120353,0.26495142,119180.0,119170.0,0.34993905]
[1753642120576,0.00208132,119180.0,119170.0,0.55578635]
[1753642120813,0.00208132,119180.0,119170.0,1.26361591]
[1753642121046,0.07708132,119180.0,119170.0,1.37725428]
[1753642121275,0.07708132,119180.0,119170.0,1.74639937]
[1753642121499,0.07708132,119180.0,119170.0,1.29534837]
[1753642121933,0.07808132,119180.0,119170.0,1.29534837]
[1753642122376,0.07708132,119180.0,119170.0,1.29534837]
[1753642122594,0.07508132,119180.0,119170.0,1.29534837]
[1753642122798,0.07508132,119180.0,119170.0,1.29634837]
[1753642123015,0.07508132,119180.0,119170.0,1.29734837]
[1753642123232,0.07508132,119180.0,119170.0,1.14868837]
[1753642123465,0.07508132,119180.0,119170.0,1.12449337]
[1753642123681,0.07508132,119180.0,119170.0,1.27545551]
[1753642125200,0.10808132,119180.0,119170.0,1.27545551]
[1753642125406,0.07508132,119180.0,119170.0,1.27545551]
[1753642126730,0.07508132,119180.0,119170.0,1.30208551]
[1753642127161,8.132e-05,119180.0,119170.0,1.27545551]
[1753642127386,0.07508132,119180.0,119170.0,1.27545551]
[1753642127824,0.16666132,119180.0,119170.0,1.27545551]
[1753642129149,0.10588132,119180.0,119170.0,1.27545551]
[1753642129376,0.07508132,119180.0,119170.0,1.27545551]
[1753642130464,0.07508132,119180.0,119170.0,1.30208551]
[1753642131336,0.07508132,119180.0,119170.0,1.09282751]
[1753642131567,0.07508132,119180.0,119170.0,1.66887351]
[1753642134678,0.07508132,119180.0,119170.0,1.64224351]
[1753642135775,0.07508132,119180.0,119170.0,1.66743951]
[1753642138762,0.13257132,119180.0,119170.0,1.66743951]
[1753642139466,8.132e-05,119180.0,119170.0,2.05994035]
[1753642139688,8.132e-05,119180.0,119170.0,2.07600005]
[1753642139918,8.132e-05,119180.0,119170.0,3.69168405]
[1753642140401,8.132e-05,119180.0,119170.0,3.74206405]
[1753642140631,8.132e-05,119180.0,119170.0,3.94358405]
[1753642140860,8.132e-05,119180.0,119170.0,6.83633135]
[1753642141295,8.132e-05,119180.0,119170.0,6.65707821]
[1753642141545,8.132e-05,119180.0,119170.0,6.71434401]
[1753642141775,8.132e-05,119180.0,119170.0,6.70035301]
[1753642142006,8.132e-05,119180.0,119170.0,6.72742001]
[1753642142228,8.132e-05,119180.0,119170.0,6.65428001]
[1753642142462,8.132e-05,119180.0,119170.0,6.47673267]
[1753642142903,8.132e-05,119180.0,119170.0,6.82659767]
[1753642143121,8.132e-05,119180.0,119170.0,6.67577287]
[1753642144228,8.132e-05,119180.0,119170.0,6.67777287]
[1753642144919,8.132e-05,119180.0,119170.0,6.35488233]
[1753642145148,8.132e-05,119180.0,119170.0,1.67777287]
[1753642145373,8.132e-05,119180.0,119170.0,6.66366899]
[1753642146020,8.132e-05,119180.0,119170.0,1.70297299]
[1753642146245,8.132e-05,119180.0,119170.0,6.68942199]
[1753642146682,8.132e-05,119180.0,119170.0,6.51105599]
[1753642146858,8.132e-05,119180.0,119170.0,6.07396499]
[1753642147074,8.132e-05,119180.0,119170.0,5.38122199]
[1753642147282,8.132e-05,119180.0,119170.0,5.26265999]
[1753642147493,8.132e-05,119180.0,119170.0,5.26179999]
[1753642147702,8.132e-05,119180.0,119170.0,5.23929599]
[1753642148167,8.132e-05,119180.0,119170.0,5.23918799]
[1753642148388,0.09476132,119180.0,119170.0,1.37278915]
[1753642148607,0.51840228,119180.0,119170.0,1.50215544]
[1753642148835,0.19551174,119180.0,119170.0,1.48704244]
[1753642149063,0.19551174,119180.0,119170.0,1.31936944]
[1753642149352,0.56840228,119180.0,119170.0,1.17056042]
[1753642149578,0.66018241,119180.0,119170.0,1.07320442]
[1753642149800,0.64340228,119180.0,119170.0,1.22213242]
[1753642150713,0.64340228,119180.0,119170.0,1.21913242]
[1753642151166,0.65179231,119180.0,119170.0,1.22013242]
[1753642151380,0.65179231,119180.0,119170.0,1.22113242]
[1753642151591,0.64340228,119180.0,119170.0,1.21913242]
[1753642151818,0.64340228,119180.0,119170.0,1.19242242]
[1753642152282,0.64340228,119180.0,119170.0,1.07020442]
[1753642152474,0.65179238,119180.0,119170.0,1.07020442]
[1753642152853,0.66018269,119180.0,119170.0,0.58406259]
[1753642153082,0.66857321,119180.0,119170.0,0.70503164]
[1753642153288,0.66857321,119180.0,119170.0,0.72181361]
[1753642153488,0.66857321,119180.0,119170.0,0.72181368]
[1753642153917,0.65179238,119180.0,119170.0,0.73020456]
[1753642154119,0.66018269,119180.0,119170.0,0.57940733]
[1753642154932,0.58414196,119180.0,119170.0,0.57940733]
[1753642155470,0.5925322,119180.0,119170.0,0.57940733]
[1753642155917,0.58414196,119180.0,119170.0,0.57940733]
[1753642156868,0.5925322,119180.0,119170.0,0.57940733]
[1753642157913,0.58414196,119180.0,119170.0,0.57940733]
[1753642158087,0.5925322,119180.0,119170.0,0.57940733]
[1753642158458,0.5925322,119180.0,119170.0,0.45004733]
[1753642158687,0.5925322,119180.0,119170.0,0.57940733]
[1753642159546,0.60092258,119180.0,119170.0,0.57940733]
[1753642160433,0.60092258,119180.0,119170.0,0.57101645]
[1753642160702,0.60092258,119180.0,119170.0,0.57940733]
[1753642160878,0.60092265,119180.0,119170.0,0.57940733]
[1753642161504,0.76873604,119180.0,119170.0,0.54584325]
[1753642161728,0.60092265,119180.0,119170.0,0.5626255]
[1753642161948,0.60931317,119180.0,119170.0,0.57940747]
[1753642162148,0.5925322,119180.0,119170.0,0.57940705]
[1753642163259,0.60092251,119180.0,119170.0,0.57940705]
[1753642163468,0.60931296,119180.0,119170.0,0.57940705]
[1753642163686,0.60931289,119180.0,119170.0,0.57940705]
[1753642163899,0.5925322,119180.0,119170.0,0.57940705]
[1753642164115,0.5945322,119180.0,119170.0,0.57940705]
[1753642164361,0.58614196,119180.0,119170.0,0.57940705]
[1753642166244,0.59453213,119180.0,119170.0,0.57940705]
[1753642166441,0.58614196,119180.0,119170.0,0.57940705]
[1753642166908,0.58614196,119180.0,119170.0,0.57101617]
[1753642167124,0.58614196,119180.0,119170.0,0.57940705]
[1753642167927,0.58614196,119180.0,119170.0,0.56262522]
[1753642168137,0.58614196,119180.0,119170.0,0.5710161]
[1753642168335,0.58614196,119180.0,119170.0,0.57101617]
[1753642168560,0.58614196,119180.0,119170.0,0.57940705]
[1753642169007,0.58614189,119180.0,119170.0,0.57940705]
[1753642169196,0.59453213,119180.0,119170.0,0.57940705]
[1753642170133,0.59453206,119180.0,119170.0,0.57940705]
[1753642171122,0.77073639,119180.0,119170.0,0.28514718]
[1753642171304,0.77073639,119180.0,119170.0,0.45297465]
[1753642172054,0.77073639,119180.0,119170.0,0.46136602]
[1753642172282,0.77073639,119180.0,119170.0,0.34975718]
[1753642172506,0.77073639,119180.0,119170.0,0.34975725]
[1753642172789,0.77073639,119180.0,119170.0,0.34975732]
[1753642173002,0.76234622,119180.0,119170.0,0.34136602]
[1753642173345,0.76234622,119180.0,119170.0,0.33297465]
[1753642173567,0.75395584,119180.0,119170.0,0.33297465]
[1753642175144,0.74556525,119180.0,119170.0,0.16514718]
[1753642175356,0.74556525,119180.0,119170.0,0.03578718]
[1753642175580,0.74556525,119180.0,119170.0,0.12936]
[1753642176452,0.74456525,119180.0,119170.0,0.29718747]
[1753642177102,0.74656525,119180.0,119170.0,0.29718747]
[1753642177972,0.74656525,119180.0,119170.0,0.33050067]
[1753642179017,0.76334622,119180.0,119170.0,0.34029562]
[1753642179441,0.59553283,119180.0,119170.0,0.34029562]
[1753642180129,0.59553283,119180.0,119170.0,0.34868678]
[1753642180641,0.59553283,119180.0,119170.0,0.34029562]
[1753642180841,0.59553283,119180.0,119170.0,0.34868678]
[1753642181078,0.59553283,119180.0,119170.0,0.34029562]
[1753642181283,0.60392349,119180.0,119170.0,0.34029562]
[1753642181694,0.59553241,119180.0,119170.0,0.35707773]
[1753642182296,0.59553241,119180.0,119170.0,0.3570778]
[1753642182501,0.60392286,119180.0,119170.0,0.3570778]
[1753642183359,0.60392286,119180.0,119170.0,0.35707787]
[1753642183570,0.52366186,119180.0,119170.0,0.36683875]
[1753642183783,0.25077132,119180.0,119170.0,0.45131605]
[1753642183994,0.25077132,119180.0,119170.0,0.56131605]
[1753642184852,0.25916135,119180.0,119170.0,0.56131605]
[1753642185200,0.26216135,119180.0,119170.0,0.56131605]
[1753642186625,0.58505189,119180.0,119170.0,0.56131605]
[1753642186830,0.26216135,119180.0,119170.0,0.56131605]
[1753642187641,0.25377132,119180.0,119170.0,0.56131605]
[1753642187868,0.25077132,119180.0,119170.0,0.56131605]
[1753642190485,0.25077132,119180.0,119170.0,0.45131605]
[1753642190704,0.25377132,119180.0,119170.0,0.45131605]
[1753642191152,0.27055159,119180.0,119170.0,0.45131605]
[1753642191362,0.59544206,119180.0,119170.0,0.45131605]
[1753642191999,0.59544199,119180.0,119170.0,0.45131605]
[1753642192409,0.60383216,119180.0,119170.0,0.45131605]
[1753642192837,0.59544199,119180.0,119170.0,0.45131605]
[1753642193263,0.60383216,119180.0,119170.0,0.44292517]
[1753642193488,0.60383216,119180.0,119170.0,0.44994605]
[1753642193708,0.61222247,119180.0,119170.0,0.44994605]
[1753642193924,0.6122224,119180.0,119170.0,0.44994605]
[1753642194547,0.62061271,119180.0,119170.0,0.44990605]
[1753642194753,0.6525569,119180.0,119170.0,0.44990605]
[1753642195447,0.66094728,119180.0,119170.0,0.44990605]
[1753642195903,0.6525569,119180.0,119170.0,0.44990605]
[1753642196522,0.66094728,119180.0,119170.0,0.44990605]
[1753642196737,0.6525569,119180.0,119170.0,0.44990605]
[1753642196946,0.66094721,119180.0,119170.0,0.44990605]
[1753642198329,0.65255746,119180.0,119170.0,0.44147517]
[1753642198749,0.66094798,119180.0,119170.0,0.44986612]
[1753642199385,0.65255746,119180.0,119170.0,0.458257]
[1753642200017,0.64416708,119180.0,119170.0,0.458257]
[1753642200422,0.63577677,119180.0,119170.0,0.458257]
[1753642201108,0.64416715,119180.0,119170.0,0.458257]
[1753642201530,0.63577677,119180.0,119170.0,0.458257]
[1753642202313,0.62738646,119180.0,119170.0,0.458257]
[1753642202566,0.6357767,119180.0,119170.0,0.458257]
[1753642203205,0.64416708,119180.0,119170.0,0.458257]
[1753642203396,0.63577677,119180.0,119170.0,0.458257]
[1753642205036,0.62738646,119180.0,119170.0,0.458257]
[1753642205214,0.64416708,119180.0,119170.0,0.458257]
[1753642205408,0.6357767,119180.0,119170.0,0.458257]
[1753642206250,0.64416708,119180.0,119170.0,0.458257]
[1753642206650,0.6357767,119180.0,119170.0,0.458257]
[1753642206851,0.64416701,119180.0,119170.0,0.458257]
[1753642207162,0.65255739,119180.0,119170.0,0.458257]
[1753642207384,0.61899636,119180.0,119170.0,0.42354008]
[1753642207622,0.62738646,119180.0,119170.0,0.54354008]
[1753642207949,0.6357767,119180.0,119170.0,0.42354008]
[1753642208393,0.61899636,119180.0,119170.0,0.54354008]
[1753642208624,0.62738639,119180.0,119170.0,0.54491008]
[1753642208848,0.63577656,119180.0,119170.0,0.54491008]
[1753642209346,0.62738639,119180.0,119170.0,0.54491008]
[1753642209588,0.00308132,119180.0,119170.0,0.92903512]
[1753642209812,0.05308132,119180.0,119170.0,0.56581008]
[1753642210495,0.12708132,119180.0,119170.0,0.56581008]
[1753642210718,0.12708132,119180.0,119170.0,0.92903512]
[1753642211168,0.12708132,119180.0,119170.0,0.90813512]
[1753642211390,0.12708132,119180.0,119170.0,0.57010908]
[1753642211605,0.12708132,119180.0,119170.0,0.93333412]
[1753642211825,0.12508132,119180.0,119170.0,0.93333412]
[1753642212126,0.12608132,119180.0,119170.0,0.93333412]
[1753642212395,0.12608132,119180.0,119170.0,0.59555242]
[1753642212867,0.18165132,119180.0,119170.0,0.59555242]
[1753642213799,0.24435132,119180.0,119170.0,0.6053466]
[1753642214065,0.61065636,119180.0,119170.0,0.6053466]
[1753642214660,0.24938132,119180.0,119170.0,0.6053466]
[1753642214880,0.61260636,119180.0,119170.0,0.6053466]
[1753642215277,0.24938132,119180.0,119170.0,0.6053466]
[1753642215499,0.61260636,119180.0,119170.0,0.6053466]
[1753642217941,0.24938132,119180.0,119170.0,0.6053466]
[1753642218173,0.21513132,119180.0,119170.0,0.6053466]
[1753642219411,0.22352135,119180.0,119170.0,0.6053466]
[1753642219933,0.21513132,119180.0,119170.0,0.6053466]
[1753642220488,0.22352142,119180.0,119170.0,0.6053466]
[1753642220705,0.26451166,119180.0,119170.0,0.6053466]
[1753642221244,0.26646166,119180.0,119170.0,0.5801476]
[1753642221490,0.6296867,119180.0,119170.0,0.5801476]
[1753642222107,0.64646753,119180.0,119170.0,0.5787776]
[1753642222317,0.63807701,119180.0,119170.0,0.5787776]
[1753642222534,0.64646746,119180.0,119170.0,0.4587776]
[1753642223558,0.63807701,119180.0,119170.0,0.4587776]
[1753642223776,0.64646739,119180.0,119170.0,0.4587776]
[1753642224996,0.80589131,119180.0,119170.0,0.28754229]
[1753642225202,0.80589131,119180.0,119170.0,0.42513366]
[1753642225462,0.80589131,119180.0,119170.0,0.43352496]
[1753642225672,0.79750093,119180.0,119170.0,0.43352496]
[1753642227327,0.79750093,119180.0,119170.0,0.16443752]
[1753642228592,0.79750093,119180.0,119170.0,0.33226499]
[1753642228795,0.79750093,119180.0,119170.0,0.35743861]
[1753642229528,0.79750093,119180.0,119170.0,0.36582963]
[1753642229944,0.43427589,119180.0,119170.0,0.37422058]
[1753642230146,0.25807184,119180.0,119170.0,0.37422058]
[1753642230396,0.62968719,119180.0,119170.0,0.37422016]
[1753642230615,0.68545783,119180.0,119170.0,0.37422016]
[1753642230831,0.62968719,119180.0,119170.0,0.37422016]
[1753642231045,0.63807778,119180.0,119170.0,0.37422016]
[1753642232828,0.62968719,119180.0,119170.0,0.37422016]
[1753642233739,0.26646215,119180.0,119170.0,0.37422016]
[1753642233991,0.67311341,119180.0,119170.0,0.37422016]
[1753642234205,0.681504,119180.0,119170.0,0.37427042]
[1753642235286,0.84931739,119180.0,119170.0,0.34909757]
[1753642235517,0.84931739,119180.0,119170.0,0.35748859]
[1753642236209,0.84931739,119180.0,119170.0,0.34909757]
[1753642237094,0.84931739,119180.0,119170.0,0.34070648]
[1753642237330,0.83253656,119180.0,119170.0,0.34070648]
[1753642237546,0.82414597,119180.0,119170.0,0.34070662]
[1753642237771,0.82414597,119180.0,119170.0,0.03528778]
[1753642237989,0.82414597,119180.0,119170.0,0.16440778]
[1753642238436,0.82314597,119180.0,119170.0,0.16440778]
[1753642238922,0.82414597,119180.0,119170.0,0.16440778]
[1753642239400,1.74196831,119180.0,119170.0,5.026e-05]
[1753642239888,0.23464071,119150.0,119140.0,0.12912]
[1753642240105,0.05839426,119120.0,119110.0,0.38932193]
[1753642240348,0.05839426,119120.0,119110.0,0.73949923]
[1753642240349,0.50171194,119120.0,119110.0,0.73949923]
[1753642240610,0.52739194,119120.0,119110.0,1.07949923]
[1753642241159,0.29985073,119120.0,119110.0,0.73110427]
[1753642241162,0.62303793,119120.0,119110.0,0.50966948]
[1753642241411,0.66646415,119120.0,119110.0,0.84966948]
[1753642241687,0.64128039,119120.0,119110.0,0.85009663]
[1753642241910,0.33273192,119120.0,119110.0,0.85009663]
[1753642242145,0.32433745,119120.0,119110.0,0.85009663]
[1753642242637,0.32433745,119120.0,119110.0,0.85970888]
[1753642242854,0.32433745,119120.0,119110.0,0.86070888]
[1753642243080,0.31594312,119120.0,119110.0,0.86070888]
[1753642243315,0.28259312,119120.0,119110.0,0.86070888]
[1753642243774,0.29098738,119120.0,119110.0,0.88540447]
[1753642243990,0.28259312,119120.0,119110.0,0.88540447]
[1753642246814,0.1502869,119120.0,119110.0,0.93584447]
[1753642247022,0.1502869,119120.0,119110.0,1.49799174]
[1753642247463,0.1502869,119120.0,119110.0,1.17480447]
[1753642248333,0.1502869,119120.0,119110.0,0.93584447]
[1753642248594,0.1502869,119120.0,119110.0,1.82030547]
[1753642248816,0.1502869,119120.0,119110.0,1.56369647]
[1753642249036,0.17174295,119120.0,119110.0,1.56369647]
[1753642249243,0.17174295,119120.0,119110.0,1.59289647]
[1753642249668,0.17174295,119120.0,119110.0,2.67583176]
[1753642249669,0.1002869,119120.0,119110.0,2.67583176]
[1753642250322,0.0252869,119120.0,119110.0,2.67583176]
[1753642250551,0.1002869,119120.0,119110.0,2.67583176]
[1753642250759,0.1002869,119120.0,119110.0,1.74303249]
[1753642251422,0.1002869,119120.0,119110.0,1.68688649]
[1753642251842,0.1002869,119120.0,119110.0,1.94726949]
[1753642252059,0.0252869,119120.0,119110.0,1.74613949]
[1753642252289,0.1002869,119120.0,119110.0,1.22675849]
[1753642254748,0.1002869,119120.0,119110.0,1.55080576]
[1753642255875,0.3697869,119120.0,119110.0,1.55080576]
[1753642256761,0.2947869,119120.0,119110.0,1.55080576]
[1753642256964,0.2947869,119120.0,119110.0,3.59517776]
[1753642257355,0.2947869,119120.0,119110.0,3.31848276]
[1753642257572,0.2947869,119120.0,119110.0,3.24414276]
[1753642257789,0.2947869,119120.0,119110.0,3.27206876]
[1753642258245,0.2947869,119120.0,119110.0,3.07015876]
[1753642258497,0.2947869,119120.0,119110.0,2.96587476]
[1753642258704,0.2947869,119120.0,119110.0,2.94617676]
[1753642258823,0.2947869,119120.0,119110.0,2.94654376]
[1753642259790,0.2947869,119120.0,119110.0,1.30568076]
[1753642260261,0.3697869,119120.0,119110.0,2.90348976]
[1753642260707,0.3697869,119120.0,119110.0,2.92869876]
[1753642261145,0.3697869,119120.0,119110.0,2.95270976]
[1753642261364,0.2947869,119120.0,119110.0,2.94762376]
[1753642262245,0.2947869,119120.0,119110.0,4.55989176]
[1753642262900,0.2947869,119120.0,119110.0,1.33088976]
[1753642263084,0.2947869,119120.0,119110.0,4.55989176]
[1753642263344,0.3697869,119120.0,119110.0,4.48787576]
[1753642263985,0.2947869,119120.0,119110.0,4.48787576]
[1753642264432,0.2947869,119120.0,119110.0,4.53318876]
[1753642264621,0.2947869,119120.0,119110.0,4.46022776]
[1753642265304,0.2947869,119120.0,119110.0,4.29661376]
[1753642265560,0.2947869,119120.0,119110.0,4.30213076]
[1753642265777,0.2947869,119120.0,119110.0,4.28231976]
[1753642266454,0.2947869,119120.0,119110.0,4.05260776]
[1753642266677,0.2947869,119120.0,119110.0,3.97190949]
[1753642266909,0.2947869,119120.0,119110.0,4.29509676]
[1753642267569,0.2947869,119120.0,119110.0,3.95654976]
[1753642268673,0.2947869,119120.0,119110.0,4.00591276]
[1753642268891,0.2947869,119120.0,119110.0,3.95913276]
[1753642269335,0.2947869,119120.0,119110.0,3.36816876]
[1753642269553,0.2947869,119120.0,119110.0,3.83179976]
[1753642270701,0.2947869,119120.0,119110.0,3.92502976]
[1753642271781,0.2947869,119120.0,119110.0,3.91841476]
[1753642272048,0.2947869,119120.0,119110.0,3.89252276]
[1753642272266,0.2947869,119120.0,119110.0,3.71878376]
[1753642272485,0.2947869,119120.0,119110.0,3.68447592]
[1753642272661,0.2947869,119120.0,119110.0,3.92878892]
[1753642272875,0.2947869,119120.0,119110.0,3.43096892]
[1753642273724,0.2947869,119120.0,119110.0,3.97916492]
[1753642274148,0.2947869,119120.0,119110.0,3.79660392]
[1753642274491,0.2947869,119120.0,119110.0,3.61031592]
[1753642274708,0.2947869,119120.0,119110.0,1.26586192]
[1753642274923,0.2947869,119120.0,119110.0,3.49395392]
[1753642275145,0.2947869,119120.0,119110.0,3.12034792]
[1753642275662,0.2947869,119120.0,119110.0,3.32994492]
[1753642275891,0.2947869,119120.0,119110.0,3.13701292]
[1753642276111,0.0252869,119120.0,119110.0,3.13701292]
[1753642276325,0.0777369,119120.0,119110.0,3.13701292]
[1753642276688,0.0777369,119120.0,119110.0,3.10233892]
[1753642277217,0.0777369,119120.0,119110.0,2.77915165]
[1753642277442,0.0777369,119120.0,119110.0,1.97466992]
[1753642277666,0.0809069,119120.0,119110.0,1.97466992]
[1753642277897,0.0809069,119120.0,119110.0,2.49055492]
[1753642278123,0.1467669,119120.0,119110.0,0.89230465]
[1753642278344,0.16235759,119120.0,119110.0,0.89230465]
[1753642278586,0.16235759,119120.0,119110.0,0.78834014]
[1753642278812,0.23735759,119120.0,119110.0,1.16374314]
[1753642279529,0.2217669,119120.0,119110.0,1.16374314]
[1753642280641,0.2217669,119120.0,119110.0,1.17302146]
[1753642280854,0.2217669,119120.0,119110.0,1.56748746]
[1753642281526,0.4912669,119120.0,119110.0,1.54059846]
[1753642281982,0.4912669,119120.0,119110.0,1.21625846]
[1753642283317,0.4912669,119120.0,119110.0,0.90144946]
[1753642283541,0.4912669,119120.0,119110.0,1.26373746]
[1753642284595,0.4162669,119120.0,119110.0,1.26373746]
[1753642284819,0.4912669,119120.0,119110.0,1.26373746]
[1753642285923,0.4912669,119120.0,119110.0,1.21357246]
[1753642286583,0.4162669,119120.0,119110.0,1.21357246]
[1753642286795,0.4912669,119120.0,119110.0,1.21357246]
[1753642288388,0.2217669,119120.0,119110.0,1.21357246]
[1753642291168,0.1467669,119120.0,119110.0,1.21357246]
[1753642291377,0.2217669,119120.0,119110.0,1.21357246]
[1753642291840,0.24894359,119120.0,119110.0,1.21357246]
[1753642292927,0.2217669,119120.0,119110.0,1.21357246]
[1753642293671,0.2217669,119120.0,119110.0,1.29088046]
[1753642294089,0.2217669,119120.0,119110.0,1.21429746]
[1753642296431,0.2217669,119120.0,119110.0,1.21425746]
[1753642302603,0.2217669,119120.0,119110.0,1.20267646]
[1753642302857,0.24894359,119120.0,119110.0,1.02473146]
[1753642303089,0.24894359,119120.0,119110.0,0.90140946]
[1753642303972,0.24894359,119120.0,119110.0,0.92661846]
[1753642305520,0.24894359,119120.0,119110.0,0.92553846]
[1753642308860,0.24894359,119120.0,119110.0,1.05181246]
[1753642309078,0.24894359,119120.0,119110.0,1.4153425]
[1753642309279,0.2217669,119120.0,119110.0,1.4153425]
[1753642309691,0.2217669,119120.0,119110.0,3.1616385]
[1753642310041,0.2217669,119120.0,119110.0,3.0030845]
[1753642310227,0.2217669,119120.0,119110.0,1.2904385]
[1753642310475,0.2217669,119120.0,119110.0,3.0030845]
[1753642310675,0.2198069,119120.0,119110.0,2.8232045]
[1753642311091,0.2198069,119120.0,119110.0,2.7767635]
[1753642311946,0.2198069,119120.0,119110.0,2.7615775]
[1753642312402,0.2198069,119120.0,119110.0,2.7321725]
[1753642312831,0.2198069,119120.0,119110.0,2.69171589]
[1753642313446,0.24678759,119120.0,119110.0,2.69171589]
[1753642313643,0.24678759,119120.0,119110.0,2.66166189]
[1753642314212,0.1448069,119120.0,119110.0,2.66166189]
[1753642314426,0.2198069,119120.0,119110.0,2.66166189]
[1753642315629,0.2198069,119120.0,119110.0,2.62154689]
[1753642319325,0.0252869,119120.0,119110.0,1.26307189]
[1753642319561,0.0252869,119120.0,119110.0,3.33654789]
[1753642319772,0.0252869,119120.0,119110.0,3.36874789]
[1753642320321,0.0252869,119120.0,119110.0,3.87646089]
[1753642320543,0.0252869,119120.0,119110.0,3.82116989]
[1753642320737,0.0639,119140.0,119130.0,0.21051455]
[1753642320946,0.0332,119140.0,119130.0,2.72833428]
[1753642321149,0.23972,119150.0,119140.0,0.21049835]
[1753642321326,0.23972,119150.0,119140.0,1.56903765]
[1753642321544,0.24484,119150.0,119140.0,1.49304165]
[1753642321979,0.24484,119150.0,119140.0,1.48225965]
[1753642322180,0.24484,119150.0,119140.0,1.18842265]
[1753642322397,0.24484,119150.0,119140.0,0.99778265]
[1753642322799,0.24584,119150.0,119140.0,0.57046965]
[1753642322999,0.17084,119150.0,119140.0,0.57046965]
[1753642323160,0.17084,119150.0,119140.0,1.11347965]
[1753642324010,0.17084,119150.0,119140.0,1.43655308]
[1753642324218,0.16873,119150.0,119140.0,1.43655308]
[1753642324413,0.16973,119150.0,119140.0,1.43655308]
[1753642324857,0.24473,119150.0,119140.0,1.11347965]
[1753642325684,0.24684,119150.0,119140.0,1.11347965]
[1753642326298,0.17184,119150.0,119140.0,1.11347965]
[1753642326498,0.24684,119150.0,119140.0,1.11347965]
[1753642328404,0.17184,119150.0,119140.0,1.11347965]
[1753642329606,0.11672,119150.0,119140.0,1.43655308]
[1753642329808,0.002,119150.0,119140.0,3.55542838]
[1753642330043,0.002,119150.0,119140.0,3.55628838]
[1753642330571,0.002,119150.0,119140.0,3.52725338]
[1753642330781,0.002,119150.0,119140.0,3.05670138]
[1753642330983,0.002,119150.0,119140.0,3.04361138]
[1753642331208,0.002,119150.0,119140.0,2.97503238]
[1753642331449,0.002,119150.0,119140.0,1.33111038]
[1753642331650,0.002,119150.0,119140.0,3.27483838]
[1753642331861,0.001,119150.0,119140.0,3.34421038]
[1753642332067,0.001,119150.0,119140.0,2.93665965]
[1753642332278,0.001,119150.0,119140.0,2.83548208]
[1753642332485,0.001,119150.0,119140.0,2.82239208]
[1753642332673,0.19173,119160.0,119150.0,0.95130615]
[1753642332888,0.19384,119160.0,119150.0,1.27462345]
[1753642333036,0.19384,119160.0,119150.0,1.13546445]
[1753642333259,0.19384,119160.0,119150.0,1.16066545]
[1753642333457,0.19384,119160.0,119150.0,1.05658145]
[1753642333665,0.19384,119160.0,119150.0,0.73269645]
[1753642333927,0.19484,119160.0,119150.0,0.7331236]
[1753642334061,0.19584,119160.0,119150.0,0.7331236]
[1753642336416,0.12084,119160.0,119150.0,0.7331236]
[1753642336835,0.19584,119160.0,119150.0,0.7331236]
[1753642337732,0.19584,119160.0,119150.0,0.5594276]
[1753642337941,0.19584,119160.0,119150.0,0.7556466]
[1753642338152,0.19584,119160.0,119150.0,0.7300006]
[1753642339894,0.19584,119160.0,119150.0,0.5594276]
[1753642340111,0.20423144,119160.0,119150.0,0.5594276]
[1753642340327,0.19584,119160.0,119150.0,0.5594276]
[1753642340763,0.19584,119160.0,119150.0,0.6920006]
[1753642341848,0.19584,119160.0,119150.0,0.5594276]
[1753642342069,0.19584,119160.0,119150.0,0.58410473]
[1753642342731,0.20423144,119160.0,119150.0,0.58410473]
[1753642343184,0.58569638,119160.0,119150.0,0.56665571]
[1753642343434,0.59408803,119160.0,119150.0,0.56665571]
[1753642343819,0.60247989,119160.0,119150.0,0.56665571]
[1753642344061,0.60247982,119160.0,119150.0,0.56665571]
[1753642344282,0.58569638,119160.0,119150.0,0.56665571]
[1753642344491,0.59408803,119160.0,119150.0,0.56665571]
[1753642344714,0.60247982,119160.0,119150.0,0.56665571]
[1753642345148,0.58569638,119160.0,119150.0,0.57580436]
[1753642346238,0.61087182,119160.0,119150.0,0.57580436]
[1753642347139,0.76193028,119160.0,119150.0,0.43017958]
[1753642347346,0.76193028,119160.0,119150.0,0.40497858]
[1753642347572,0.75353863,119160.0,119150.0,0.31210857]
[1753642347794,0.75353863,119160.0,119150.0,0.27305293]